Cogmind - Beta 13 *** ADVENTURER MODE // 2024.08.05 @ 05:02:09 Player: Nalzok Result: Destroyed by as-56434 with Assembled Gauss Rifle Performance ------------- Evolutions (4) 2000 Regions Visited (11) 2200 Robots Destroyed (86) 430 Value Destroyed (2510) 2510 Prototype IDs (14) 280 Alien Tech Used (0) 0 Bonus (2598) 2598 TOTAL SCORE: 10018 Bonus ------- High Alert Combat Kills 86 Follower Combat Kills 101 Met Imprinter 300 Was Imprinted 300 Destroyed Z-Imprinter 1000 Triggered Deep Caves Wall 500 Exposed GOLEM Chamber 500 Friendly Fire -189 Cogmind --------- Core Integrity 0/850 Matter 291/300 Energy 100/100 System Corruption 2% Temperature Cool (23) Movement Core (100) Ox1 Location -6/Deep Caves Parts ------- > --- POWER (1) -------- (None) > --- PROPULSION (4) --- Assembled Alloy Leg Assembled Alloy Leg > --- UTILITY (6) ------ GOLEM Unit GOLEM Unit > --- WEAPON (4) ------- Phasing Sabre > --- INVENTORY (5) ---- Hacking Drone Bay (1/1) GOLEM Unit Peak State ------------ > --- POWER ------------ (None) > --- PROPULSION ------- Assembled Alloy Leg Assembled Alloy Leg Armored Huge Wheel > --- UTILITY ---------- GOLEM Unit GOLEM Unit GOLEM Unit > --- WEAPON ----------- Neutron Cannon Phasing Sabre > --- INVENTORY -------- Sensor Drone Bay Hacking Drone Bay GOLEM Unit CR-A16's Pointy Stick [Rating: 90] Favorites ----------- Power Light Fission Core Engine Improved Ion Engine Power Core Light Fission Core Reactor Zionite Light DM Reactor Propulsion Armored Huge Wheel Leg Aluminum Leg Wheel Armored Huge Wheel Hover Unit Zionite Glidesys I Utility Large Storage Unit Device Kinecellerator Storage Large Storage Unit Processor Enhanced Optical Array Protection Hardened Light Armor Plating Weapon Advanced Assault Cannon Energy Gun Small Laser Energy Cannon Advanced Beam Cannon Ballistic Gun Heavy Machine Gun Ballistic Cannon Advanced Assault Cannon Launcher Mini Grenade Launcher Slashing Weapon Phasing Sabre Build | -11 -10 -10 -9 -9 -9 -7 -6 -6 -6 -6 -6 ------- Run | Yrd Mat Min Mat Sto Rec Fac Fac Low Low Zio Dee Slots Evolved 8 | . . . 2 . . 4 2 . . . . Power . | . . . . . . . . . . . . Propulsion 2 | . . . . . . 2 . . . . . Utility 4 | . . . 2 . . . 2 . . . . Weapon 2 | . . . . . . 2 . . . . . Parts Attached 123 | . 8 3 7 16 2 17 19 1 5 10 35 Power 13 | . 2 . 1 1 1 3 3 . . . 2 Engine 11 | . 2 . 1 1 1 3 2 . . . 1 Core 1 | . . . . . . . 1 . . . . Reactor 1 | . . . . . . . . . . . 1 Propulsion 24 | . 2 1 2 5 1 5 5 . . . 3 Treads . | . . . . . . . . . . . . Leg 19 | . 2 1 2 5 1 5 3 . . . . Wheel 4 | . . . . . . . 2 . . . 2 Hover 1 | . . . . . . . . . . . 1 Flight . | . . . . . . . . . . . . Utility 55 | . 2 2 2 5 . 2 9 . 4 6 23 Device 30 | . 2 2 1 1 . 1 2 . 3 4 14 Storage 5 | . . . . 1 . . 1 . . . 3 Processor 7 | . . . 1 1 . . 3 . 1 . 1 Hackware . | . . . . . . . . . . . . Protection 13 | . . . . 2 . 1 3 . . 2 5 Artifact . | . . . . . . . . . . . . Weapon 31 | . 2 . 2 5 . 7 2 1 1 4 7 Energy Gun 7 | . 1 . 1 3 . . . . . . 2 Energy Cannon 5 | . . . . 2 . 2 . . . . 1 Ballistic Gun 4 | . 1 . . . . . 1 . . . 2 Ballistic Cannon 11 | . . . . . . 5 1 1 1 3 . Launcher 1 | . . . 1 . . . . . . . . Special Weapon . | . . . . . . . . . . . . Impact Weapon . | . . . . . . . . . . . . Slashing Weapon 3 | . . . . . . . . . . 1 2 Piercing Weapon . | . . . . . . . . . . . . Special Melee Weapon . | . . . . . . . . . . . . Unidentified Prototypes 11 | . . 1 . . . 1 1 . . 1 7 Parts Lost 20 | . . 1 2 1 . . . . . . 16 Power 2 | . . . . . . . . . . . 2 Propulsion 4 | . . 1 . . . . . . . . 3 Utility 9 | . . . 1 1 . . . . . . 7 Weapon 5 | . . . 1 . . . . . . . 4 Highest Loss Streak 12 | . . 1 2 1 . . . . . . 12 To Critical Strikes . | . . . . . . . . . . . . Average Slot Usage (%) 89 | . 96 98 81 98 100 99 90 80 80 80 79 Engine 5 | . 14 14 11 11 11 7 3 . . . . Core 2 | . . . . . . . 2 6 6 6 1 Leg 12 | . 28 26 22 22 22 30 9 . . . . Wheel 6 | . . . . . . . 8 13 13 13 11 Device 10 | . 10 14 11 15 11 7 12 13 6 6 15 Storage 8 | . 14 14 11 11 11 7 6 6 6 6 6 Processor 8 | . . . 7 12 11 7 6 6 13 13 4 Protection 6 | . . . . 3 11 6 11 6 6 6 8 Energy Gun 5 | . 22 28 19 5 . . . . . . 6 Energy Cannon 4 | . . . . 13 22 5 . . . . 3 Ballistic Cannon 14 | . . . . . . 24 26 26 26 24 9 Naked Turns . | . . . . . . . . . . . . Heaviest Build 85 | 12 14 27 15 31 31 50 77 77 85 85 85 Greatest Support 73 | 20 20 20 20 20 25 58 73 56 56 56 56 Greatest Overweight (x) 2 | . . 1 . 1 1 1 2 1 1 1 2 Average Overweight (x) . | . . . . . 1 . . 1 1 1 . Largest Inventory Capacity 15 | 8 8 8 8 10 10 10 15 15 15 15 15 Average Capacity 12 | 8 8 8 8 9 10 10 13 15 15 15 14 Most Carried 15 | 6 8 8 8 10 10 10 15 15 15 15 15 Average Carried 11 | 6 6 6 6 9 10 9 13 15 14 14 13 Final Capacity 15 | 8 8 8 8 10 10 10 15 15 15 15 5 Final Carried 15 | 6 7 5 8 10 10 10 15 15 15 15 3 Class Distribution -------------------- 26% | Scavenger-Mutant 25% | Gunner 14% | Tank 7% | Scavenger-Gunner 7% | Commander-Tank 7% | Mutant 5% | Scavenger-Tank 4% | Commander-Mutant Dominant Class ---------------- Mutant | -10/Materials Scavenger-Mutant | -10/Mines Scavenger-Mutant | -9/Materials Scavenger-Mutant | -9/Storage Scavenger-Mutant | -9/Recycling Commander-Tank | -7/Factory Tank | -6/Factory Gunner | -6/Lower Caves Gunner | -6/Lower Caves Gunner | -6/Zion Scavenger-Gunner | -6/Deep Caves Resources | -11 -10 -10 -9 -9 -9 -7 -6 -6 -6 -6 -6 ----------- Run | Yrd Mat Min Mat Sto Rec Fac Fac Low Low Zio Dee Matter Collected 2880 | 200 95 152 68 345 30 362 517 156 253 62 640 Remotely . | . . . . . . . . . . . . Salvage Created 2990 | . 322 38 256 635 503 223 586 19 138 . 270 Parts 153 | . 10 4 13 56 21 11 26 2 6 . 4 Haulers Intercepted 7 | . 1 . 1 3 . . 2 . . . . Recyclers Shooed 3 | . . . . . 1 . 2 . . . . Parts Field Recycled . | . . . . . . . . . . . . Retrieved Matter . | . . . . . . . . . . . . Parts Self-Destructed 8 | . . . . . . . . 3 5 . . Prevented . | . . . . . . . . . . . . Kills | -11 -10 -10 -9 -9 -9 -7 -6 -6 -6 -6 -6 ------- Run | Yrd Mat Min Mat Sto Rec Fac Fac Low Low Zio Dee Combat Hostiles Destroyed 68 | . 4 1 4 22 6 3 6 2 5 . 15 Melee 9 | . . . . . . . . . . . 9 Guns 17 | . 4 1 4 7 . . . . . . 1 Cannons 27 | . . . . . 6 3 6 2 5 . 5 AOE 15 | . . . . 15 . . . . . . . Classes Destroyed 17 | . 3 1 2 3 2 . 1 . 1 . 4 Worker 5 | . . . . 2 . 3 . . . . . Builder 4 | . . . . 2 . . 2 . . . . Tunneler 1 | . . 1 . . . . . . . . . Hauler 7 | . 1 . 1 3 . . 2 . . . . Recycler 5 | . 1 . . . 2 1 1 . . . . Watcher 6 | . . . 2 1 . . 3 . . . . Swarmer 13 | . . . . 10 . 1 . 2 . . . Grunt 23 | . 4 . 3 8 1 1 3 . 3 . . Brawler 1 | . . . . . 1 . . . . . . Duelist 1 | . . . . . . . . . 1 . . Sentry 10 | . . . 1 4 3 . 2 . . . . Hunter 2 | . . . . . 1 1 . . . . . Programmer 2 | . . . . . . . 1 . 1 . . Z-Light 2 | . . . . . . . . . . . 2 Assembled 11 | . . . . . . . . . . . 11 Golem 1 | . . . . . . . . . . . 1 Fireman 1 | . . . . . . . . . . . 1 Best Kill Streak 20 | . 3 1 3 20 4 1 3 1 3 . 5 Combat Bots Only 15 | . 2 1 2 15 4 1 3 1 3 . 5 Max Kills in Single Turn 4 | . 1 1 1 4 1 1 1 1 1 . 1 Gunslinging . | . . . . . . . . . . . . Exploded 4 | . . . . 4 . . . . . . . Melee 1 | . . . . . . . . . . . 1 Uniques/NPCs Destroyed 2 | . . 1 . . . . . . . . 1 YI-UF0 (-10/Mines) Z-Imprinter (-6/Deep Caves) Combat | -11 -10 -10 -9 -9 -9 -7 -6 -6 -6 -6 -6 -------- Run | Yrd Mat Min Mat Sto Rec Fac Fac Low Low Zio Dee Hostile Shots Fired 457 | . 21 12 24 75 35 8 48 4 15 . 215 Missed 118 | . 2 3 5 28 12 2 23 . 1 . 42 Damage Taken 5438 | . 199 228 197 507 218 93 242 46 367 . 3341 Core 1085 | . 19 42 22 102 27 20 41 . 167 . 645 Absorbed by Shields 62 | . . . . . 3 28 31 . . . . Redirected to Shielding 421 | . . . . . . . . . . . 421 Ignored by Resistances 1498 | . 59 62 57 151 65 35 80 14 57 . 918 Regen/Repaired (Parts) 27 | . . . . . . 27 . . . . . Core Remaining (%) 83 | 100 . 75 . . 62 97 . . . . . Volleys Fired 186 | . 20 10 23 47 16 9 18 3 8 . 32 Largest 4 | . 2 2 2 2 2 4 4 4 4 . 4 Hottest 272 | . 90 90 90 136 136 272 192 192 192 . 210 Shots Fired 452 | . 40 20 42 74 32 36 72 12 32 . 92 Gun 185 | . 40 20 42 50 . . . . . . 33 Cannon 249 | . . . . 6 32 36 72 12 32 . 59 Launcher 18 | . . . . 18 . . . . . . . Special . | . . . . . . . . . . . . Kinetic 210 | . 15 . . . . 32 72 12 32 . 47 Thermal 218 | . 25 20 42 50 32 4 . . . . 45 Explosive 18 | . . . . 18 . . . . . . . Electromagnetic 6 | . . . . 6 . . . . . . . Robot Hit Streak 26 | . 9 13 14 17 9 4 14 2 25 . 26 Robot Miss Streak 5 | . 3 1 1 1 2 4 4 4 . . 5 Penetration Max . | . . . . . . . . . . . . Secondary Targets . | . . . . . . . . . . . . Shots Hit Robots 305 | . 32 14 33 62 20 10 36 3 24 . 71 Core Hits 152 | . 14 5 13 47 9 6 19 2 9 . 28 Critical Kills . | . . . . . . . . . . . . Critical Parts Destroyed . | . . . . . . . . . . . . Critical Strikes 13 | . 1 1 3 3 . . 3 1 . . 1 Burn 8 | . 1 1 3 3 . . . . . . . Blast 5 | . . . . . . . 3 1 . . 1 Melee Attacks 37 | . . . . . . . . . . 8 29 Impact . | . . . . . . . . . . . . Slashing 37 | . . . . . . . . . . 8 29 Piercing . | . . . . . . . . . . . . Sneak Attacks . | . . . . . . . . . . . . Combat Hostiles . | . . . . . . . . . . . . Follow-up Attacks . | . . . . . . . . . . . . Damage Inflicted 8291 | . 348 167 400 2206 434 324 1225 91 718 . 2378 Guns 2215 | . 348 167 400 585 . . . . . . 715 Cannons 3851 | . . . . 61 434 324 1225 91 718 . 998 Explosions 1560 | . . . . 1560 . . . . . . . Melee 664 | . . . . . . . . . . . 664 Ramming 1 | . . . . . . . . . . . 1 Kinetic 3105 | . 93 . . . . 304 1225 91 718 . 674 Thermal 2882 | . 255 167 400 567 434 20 . . . . 1039 Explosive 1560 | . . . . 1560 . . . . . . . Electromagnetic 79 | . . . . 79 . . . . . . . Impact . | . . . . . . . . . . . . Slashing 664 | . . . . . . . . . . . 664 Piercing . | . . . . . . . . . . . . Highest Corruption 2 | . . . . . . . . . . . 2 Average Corruption 2 | . . . . . . . . . . . 2 Corruption Purged . | . . . . . . . . . . . . Corruption Blocked . | . . . . . . . . . . . . Overload Shots . | . . . . . . . . . . . . Overflow Damage 380 | . . . . 101 . 19 51 . . . 209 Projectiles 248 | . . . . 10 . 19 51 . . . 168 Explosions 91 | . . . . 91 . . . . . . . Melee 41 | . . . . . . . . . . . 41 Knockbacks 27 | . . . . . . 4 8 . 12 . 3 Impact . | . . . . . . . . . . . . Kinetic 26 | . . . . . . 3 8 . 12 . 3 Secondary 1 | . . . . . . 1 . . . . . Self-Inflicted Damage 73 | . . . . 73 . . . . . . . Shots 4 | . . . . 4 . . . . . . . Rammed 2 | . . . . . . . . . . . 2 Targets Rammed 2 | . . . . . . . . . . . 2 Kicked . | . . . . . . . . . . . . Crushed . | . . . . . . . . . . . . Highest Temperature 704 | . 190 . 93 330 192 188 144 120 704 . 449 Average Temperature 105 | . 67 . 55 95 81 80 51 55 266 . 144 Received Heat Transfer 1856 | . 147 . 102 225 30 7 89 . 90 . 1166 Effects 18 | . . . . 1 . . . . 11 . 6 Shutdowns 3 | . . . . 1 . . . . 2 . . Energy Bleed 3 | . . . . . . . . . 1 . 2 Interference 4 | . . . . . . . . . . . 4 Matter Decay 1 | . . . . . . . . . 1 . . Short Circuit 1 | . . . . . . . . . 1 . . Damage (minor) 1 | . . . . . . . . . 1 . . Damage (major) 4 | . . . . . . . . . 4 . . Damage (core) 1 | . . . . . . . . . 1 . . Siege Activations . | . . . . . . . . . . . . Robots Corrupted . | . . . . . . . . . . . . Combat Hostiles . | . . . . . . . . . . . . Parts Fried . | . . . . . . . . . . . . Impact Corruptions . | . . . . . . . . . . . . Robots Melted . | . . . . . . . . . . . . Combat Hostiles . | . . . . . . . . . . . . Parts Melted 17 | . 5 . 10 1 1 . . . . . . Heat Transferred 5996 | . 791 532 1252 1571 777 37 . . . . 1036 Parts Sabotaged . | . . . . . . . . . . . . Parts Stolen . | . . . . . . . . . . . . Parts Stripped . | . . . . . . . . . . . . Power Chain Reactions . | . . . . . . . . . . . . Alert | -11 -10 -10 -9 -9 -9 -7 -6 -6 -6 -6 -6 ------- Run | Yrd Mat Min Mat Sto Rec Fac Fac Low Low Zio Dee Peak Influence 758 | . 149 10 116 758 228 136 189 . . . . Initial 194 | . . . . 41 194 . 57 . . . . Average 136 | . 57 2 53 552 117 50 74 . . . . Maximum Alert Level 3 | . . . . 3 1 . . . . . . Low Security (%) 81 | 100 100 100 100 8 73 100 100 . . . . Level 1 6 | . . . . 8 26 . . . . . . Level 2 8 | . . . . 54 . . . . . . . Level 3 4 | . . . . 28 . . . . . . . Level 4 . | . . . . . . . . . . . . Level 5 . | . . . . . . . . . . . . High Security . | . . . . . . . . . . . . Max Security . | . . . . . . . . . . . . Squads Dispatched 14 | . . . 1 5 . 4 4 . . . . Investigation 2 | . . . . 1 . 1 . . . . . Extermination 2 | . . . . . . 1 1 . . . . Reinforcement 7 | . . . 1 2 . 1 3 . . . . Assault . | . . . . . . . . . . . . Garrison 3 | . . . . 2 . 1 . . . . . Intercept . | . . . . . . . . . . . . Searches Triggered . | . . . . . . . . . . . . Construction Impeded 2 | . . . . 1 . . 1 . . . . Haulers Reinforced 2 | . . . . . . 1 1 . . . . Active Scanning Responses . | . . . . . . . . . . . . Cargo Convoy Interrupts . | . . . . . . . . . . . . Stealth | -11 -10 -10 -9 -9 -9 -7 -6 -6 -6 -6 -6 --------- Run | Yrd Mat Min Mat Sto Rec Fac Fac Low Low Zio Dee Distress Signals 3 | . . . 1 2 . . . . . . . Communications Jammed . | . . . . . . . . . . . . Distress Signals . | . . . . . . . . . . . . Times Spotted 136 | . 7 1 8 25 6 9 12 4 5 . 59 Peak Tracking Total 42 | . 4 1 2 8 3 4 4 3 4 . 42 Tactical Retreats 2 | . . . . . . . . 1 . . 1 Traps | -11 -10 -10 -9 -9 -9 -7 -6 -6 -6 -6 -6 ------- Run | Yrd Mat Min Mat Sto Rec Fac Fac Low Low Zio Dee Traps Triggered 3 | . . . . 2 . . 1 . . . . Indirectly . | . . . . . . . . . . . . Trap Hack Attempts . | . . . . . . . . . . . . Triggered . | . . . . . . . . . . . . Disarmed . | . . . . . . . . . . . . Reprogrammed . | . . . . . . . . . . . . Reused . | . . . . . . . . . . . . Traps Extracted . | . . . . . . . . . . . . Installed . | . . . . . . . . . . . . Triggered . | . . . . . . . . . . . . Machines | -11 -10 -10 -9 -9 -9 -7 -6 -6 -6 -6 -6 ---------- Run | Yrd Mat Min Mat Sto Rec Fac Fac Low Low Zio Dee Machines Disabled 4 | . . . . 2 . . 1 . . . 1 Max in Single Turn 1 | . . . . 1 . . 1 . . . 1 Garrison Access 1 | . . . . 1 . . . . . . . Machines Repaired . | . . . . . . . . . . . . Machines Dismantled . | . . . . . . . . . . . . Machines Sabotaged . | . . . . . . . . . . . . Overloaded Fab Kills . | . . . . . . . . . . . . Hacking | -11 -10 -10 -9 -9 -9 -7 -6 -6 -6 -6 -6 --------- Run | Yrd Mat Min Mat Sto Rec Fac Fac Low Low Zio Dee Machines Accessed 21 | . 3 1 . 4 5 4 4 . . . . Terminals 16 | . 3 . . 3 5 2 3 . . . . Fabricators 2 | . . . . . . 2 . . . . . Repair Stations . | . . . . . . . . . . . . Recycling Units . | . . . . . . . . . . . . Scanalyzers 1 | . . . . . . . 1 . . . . Garrison Access 1 | . . . . 1 . . . . . . . Total Hacks 58 | . 11 1 . 11 14 10 11 . . . . Successful 25 | . 6 1 . 5 5 4 4 . . . . Failed 33 | . 5 . . 6 9 6 7 . . . . Catastrophic 6 | . . . . 2 1 2 1 . . . . Database Lockouts . | . . . . . . . . . . . . Manual 41 | . 7 . . 7 9 7 4 . . 7 . Terminals 49 | . 11 . . 10 14 4 10 . . . . Fabricators 6 | . . . . . . 6 . . . . . Repair Stations . | . . . . . . . . . . . . Recycling Units . | . . . . . . . . . . . . Scanalyzers 1 | . . . . . . . 1 . . . . Garrison Access 1 | . . . . 1 . . . . . . . Terminal Hacks 14 | . 5 1 . 3 2 . 3 . . . . Prototype ID Bank 1 | . 1 . . . . . . . . . . Open Door 2 | . . 1 . 1 . . . . . . . Open DSF 1 | . . . . . . . 1 . . . . Branch Access Points 4 | . 1 . . 1 1 . 1 . . . . Unreport Threat 4 | . 3 . . . 1 . . . . . . Recall Reinforcements 1 | . . . . 1 . . . . . . . Zone Layout 1 | . . . . . . . 1 . . . . Fabricator Hacks 3 | . . . . . . 3 . . . . . Network Status 1 | . . . . . . 1 . . . . . Build 2 | . . . . . . 2 . . . . . Repair Station Hacks . | . . . . . . . . . . . . Recycling Unit Hacks . | . . . . . . . . . . . . Scanalyzer . | . . . . . . . . . . . . Garrison Access Hacks 1 | . . . . 1 . . . . . . . Seal Access 1 | . . . . 1 . . . . . . . Unauthorized Hacks 7 | . 1 . . 1 3 1 1 . . . . Terminals 6 | . 1 . . 1 3 . 1 . . . . Botnet 6 | . 1 . . 1 3 . 1 . . . . Fabricators 1 | . . . . . . 1 . . . . . Fabnet 1 | . . . . . . 1 . . . . . Repair Stations . | . . . . . . . . . . . . Recycling Units . | . . . . . . . . . . . . Scanalyzers . | . . . . . . . . . . . . Garrison Access . | . . . . . . . . . . . . Data Cores Recovered . | . . . . . . . . . . . . Used . | . . . . . . . . . . . . Hacking Detections 18 | . 2 . . 3 5 4 4 . . . . Full Trace Events 2 | . . . . 1 . 1 . . . . . Feedback Events . | . . . . . . . . . . . . Feedback Blocked . | . . . . . . . . . . . . Robot Schematics Acquired 4 | . . . . . . . . . . 4 . Robots Built . | . . . . . . . . . . . . Authchips . | . . . . . . . . . . . . Time . | . . . . . . . . . . . . Total Robot Build Rating . | . . . . . . . . . . . . Part Schematics Acquired 14 | . . . . . . . . . . 14 . Parts Built 3 | . . . . . . 3 . . . . . Authchips . | . . . . . . . . . . . . Time 126 | . . . . . . 126 . . . . . Total Part Build Rating 12 | . . . . . . 12 . . . . . Parts Repaired . | . . . . . . . . . . . . Time . | . . . . . . . . . . . . Parts Recycled . | . . . . . . . . . . . . Recycled Matter . | . . . . . . . . . . . . Retrieved Matter . | . . . . . . . . . . . . Retrieved Components . | . . . . . . . . . . . . Parts Scanalyzed . | . . . . . . . . . . . . Part Schematics Acquired . | . . . . . . . . . . . . Parts Damaged . | . . . . . . . . . . . . Bothacking | -11 -10 -10 -9 -9 -9 -7 -6 -6 -6 -6 -6 ------------ Run | Yrd Mat Min Mat Sto Rec Fac Fac Low Low Zio Dee Used RIF Installer . | . . . . . . . . . . . . Robots Hacked . | . . . . . . . . . . . . Non-combat . | . . . . . . . . . . . . Combat . | . . . . . . . . . . . . Robot Hacks Applied . | . . . . . . . . . . . . Relay Couplers Released . | . . . . . . . . . . . . Fabnet Peak Effective % . | . . . . . . . . . . . . Robots Rewired 12 | . . . . . 11 1 . . . . . Allies Hacked 1 | . . . . . . 1 . . . . . Hacks Repelled . | . . . . . . . . . . . . Allies | -11 -10 -10 -9 -9 -9 -7 -6 -6 -6 -6 -6 -------- Run | Yrd Mat Min Mat Sto Rec Fac Fac Low Low Zio Dee Total Allies 22 | . . . . . 11 1 . . . 10 . Largest Group 12 | . . . . . 11 12 3 . . 10 10 Highest-Rated Group 450 | . . . . . 149 165 69 . . 450 450 Highest-Rated Ally 96 | . . . . . 27 27 27 . . 96 96 Total Orders 13 | . . . . . . 2 . . 3 4 4 EXPLORE 8 | . . . . . . 1 . . 2 3 2 RETURN 5 | . . . . . . 1 . . 1 1 2 Ally Attacks 129 | . . . . . 1 41 9 . . . 78 Total Damage 2561 | . . . . . 12 572 159 . . . 1818 Kills 16 | . . . . . . 5 . . . . 11 Allies Corrupted . | . . . . . . . . . . . . Allies Melted 1 | . . . . . . . . . . . 1 Intel | -11 -10 -10 -9 -9 -9 -7 -6 -6 -6 -6 -6 ------- Run | Yrd Mat Min Mat Sto Rec Fac Fac Low Low Zio Dee Robot Analysis Total . | . . . . . . . . . . . . Derelict Logs Recovered 4 | . . 1 . . . . . 1 1 1 . Drone Launches 51 | . . . . . . 4 . . 20 20 7 Drone Recoveries 50 | . . . . . . 4 . . 20 20 6 Exploration | -11 -10 -10 -9 -9 -9 -7 -6 -6 -6 -6 -6 ------------- Run | Yrd Mat Min Mat Sto Rec Fac Fac Low Low Zio Dee Turns Passed 8568 | 3 249 840 309 746 973 772 1099 401 575 1581 1020 Spaces Moved 5401 | 3 135 618 180 330 427 449 743 309 450 1243 514 Core . | . . . . . . . . . . . . Treads . | . . . . . . . . . . . . Legs 2372 | 3 135 618 180 330 427 449 229 . . . 1 Wheels 3029 | . . . . . . . 514 309 450 1243 513 Hover . | . . . . . . . . . . . . Flight . | . . . . . . . . . . . . Fastest Speed 100 | 120 120 120 120 120 190 120 115 115 115 115 100 Average Speed 130 | 120 120 126 120 176 190 153 122 115 115 115 112 Slowest Speed 190 | 120 120 190 120 190 190 190 190 115 115 115 150 Overloaded Moves . | . . . . . . . . . . . . Propulsion Burnouts . | . . . . . . . . . . . . Robots Hopped . | . . . . . . . . . . . . Cave-ins Triggered . | . . . . . . . . . . . . Exploration Rate (%) 52 | 2 36 98 17 40 83 17 30 65 67 93 78 Regions Visited 11 Branch Regions 7 Pre-discovered Areas 4 | . . 1 . 1 . . . . . 2 . Known Exits Taken 6 | . 1 . 1 1 . . 1 . 1 1 . Unknown Exits Taken 5 | 1 . 1 . . 1 1 . 1 . . . Scrap Searched 9 | . . 1 . . . . . 2 3 3 . Spaces Dug . | . . . . . . . . . . . . Terrain Destroyed 154 | . . . . 100 . 10 20 9 8 . 7 Melee . | . . . . . . . . . . . . Projectile 54 | . . . . . . 10 20 9 8 . 7 AOE 100 | . . . . 100 . . . . . . . Terrain Rammed . | . . . . . . . . . . . . Walls Destroyed . | . . . . . . . . . . . . Machines Disabled . | . . . . . . . . . . . . Actions | -11 -10 -10 -9 -9 -9 -7 -6 -6 -6 -6 -6 --------- Run | Yrd Mat Min Mat Sto Rec Fac Fac Low Low Zio Dee Total 6515 | 2 186 659 233 424 558 511 890 347 485 1380 840 Wait 510 | . 14 18 15 . 24 9 81 32 21 110 186 Move 5390 | 2 134 617 179 329 426 448 742 308 449 1242 514 Hop . | . . . . . . . . . . . . Pick Up 45 | . 2 2 4 6 . 7 8 1 1 4 10 Fast Attach 41 | . 2 . 3 6 . 4 6 1 . 2 17 Attach 16 | . . 1 . . . 4 1 . . . 10 Detach 17 | . 1 . . 3 . 2 5 . . . 6 Swap 66 | . 6 2 4 10 2 9 12 . 5 8 8 Drop 94 | . 7 3 5 13 2 12 17 2 1 6 26 Fire 186 | . 20 10 23 47 16 9 18 3 8 . 32 Melee 37 | . . . . . . . . . . 8 29 Ram 2 | . . . . . . . . . . . 2 Kick . | . . . . . . . . . . . . Crush . | . . . . . . . . . . . . Escape Stasis 10 | . . . . 10 . . . . . . . Rewire 101 | . . 6 . . 88 7 . . . . . Trap . | . . . . . . . . . . . . Miscellaneous . | . . . . . . . . . . . . Route ------- -11/Scrapyard -10/Materials (discovered 2 exits: [*Mat] / *Min) -10/Mines (discovered 2 exits: [*Mat x2]) -9/Materials (discovered 2 exits: Mat / *Sto) -9/Storage -9/Recycling -7/Factory -6/Factory (discovered 3 exits: *Fac / *Low x2) -6/Lower Caves -6/Lower Caves (discovered 2 exits: *Fac / *Zio) -6/Zion (discovered 2 exits: *Dee / [*Pro]) -6/Deep Caves History --------- Turn | Location | Event 1 | -11/Scrapyard | Discovered new exit (range 3) 4 | -11/Scrapyard | Entered Materials 11 | -10/Materials | Identified exit to Mines 168 | -10/Materials | Discovered new exit (range 15) 253 | -10/Materials | Entered Mines 262 | -10/Mines | Discovered new exit (range 7) 266 | -10/Mines | Learned location of Storage (-9) 295 | -10/Mines | Found a hidden stash of uninstalled traps 306 | -10/Mines | Discovered new exit (range 11) 311 | -10/Mines | Build established: Mutant 346 | -10/Mines | Found the Drone Emporium 352 | -10/Mines | Found Prototype Device 353 | -10/Mines | Identified Sensor Drone Bay 490 | -10/Mines | Destroyed YI-UF0 720 | -10/Mines | Learned 2 Materials zone layouts 879 | -10/Mines | Build established: Scavenger-Mutant 1093 | -10/Mines | Entered Materials 1093 | -9/Materials | Evolved 2 slots: Utility x2 1094 | -9/Materials | Identified exit to Materials 1388 | -9/Materials | Discovered new exit (range 5) 1392 | -9/Materials | Identified exit to Storage 1402 | -9/Materials | Entered Storage 1424 | -9/Storage | Identified exit to Recycling 1448 | -9/Storage | Garrison activated, responded to threat 1614 | -9/Storage | Destroyed 15 combat bots 1768 | -9/Storage | Learned location of Armory (-4) 2144 | -9/Storage | Used back door to open Recycling access 2148 | -9/Storage | Entered Recycling 2149 | -9/Recycling | Joined Warlord attack on 0b10 via Recycling 3028 | -9/Recycling | Build established: Commander-Mutant 3077 | -9/Recycling | Discovered new exit (range 18) 3121 | -9/Recycling | Entered Factory 3121 | -7/Factory | Accompanied by 11 allies 3121 | -7/Factory | Evolved 4 slots: Propulsion x2, Weapon x2 3218 | -7/Factory | Fabricated Imp. Cooling System (x1) 3302 | -7/Factory | Lost 4 allies 3458 | -7/Factory | Build established: Commander-Tank 3554 | -7/Factory | Fabricated Great Axe (x2) 3775 | -7/Factory | Discovered new exit (range 17) 3851 | -7/Factory | Lost 4 allies 3884 | -7/Factory | Garrison activated, responded to threat 3893 | -7/Factory | Entered another Factory area 3893 | -6/Factory | Accompanied by 3 allies 3893 | -6/Factory | Evolved 2 slots: Utility x2 4103 | -6/Factory | Build established: Scavenger-Tank 4160 | -6/Factory | Lost 3 allies 4266 | -6/Factory | Identified exit to Lower Caves 4579 | -6/Factory | Build established: Tank 4838 | -6/Factory | Discovered new exit (range 21) 4992 | -6/Factory | Entered Lower Caves 5074 | -6/Lower Caves | Learned 4 Factory zone layouts 5176 | -6/Lower Caves | Build established: Gunner 5297 | -6/Lower Caves | Discovered new exit (range 16) 5393 | -6/Lower Caves | Entered another Lower Caves area 5396 | -6/Lower Caves | Discovered new exit (range 17) 5416 | -6/Lower Caves | Identified exit to Factory 5595 | -6/Lower Caves | Encountered a Warlord checkpoint 5681 | -6/Lower Caves | Learned location of 1 exit from Factory 5945 | -6/Lower Caves | Discovered new exit (range 8) 5966 | -6/Lower Caves | Identified exit to Zion 5968 | -6/Lower Caves | Entered Zion 5997 | -6/Zion | Discovered new exit (range 28) 6018 | -6/Zion | Found CR-A16's Pointy Stick 6059 | -6/Zion | Build established: Tank 6462 | -6/Zion | Learned Factory trap positions 6473 | -6/Zion | Received a hallucinogenic algorithm 6485 | -6/Zion | Build established: Gunner 6525 | -6/Zion | Given the Hacking Drone Bay 6525 | -6/Zion | Found Prototype Device 6527 | -6/Zion | Given A8's code to call for help 6670 | -6/Zion | Imprinted 6672 | -6/Zion | Declared Zion's savior 6916 | -6/Zion | Identified Hacking Drone Bay 6960 | -6/Zion | Gained Derelict followers 7082 | -6/Zion | Acquired unknown access codes intercepted by a Zionite 7379 | -6/Zion | Opened final containment barrier to the Deep Caves 7412 | -6/Zion | Enhanced Grunt warped into view, answering call for help 7432 | -6/Zion | Enhanced Grunt warped into view, answering call for help 7507 | -6/Zion | Discovered new exit (range 5) 7509 | -6/Zion | Saw the warning signs outside the Deep Caves entrance 7511 | -6/Zion | Identified exit to Deep Caves 7549 | -6/Zion | Entered Deep Caves 7549 | -6/Deep Caves | Accompanied by 10 allies 7648 | -6/Deep Caves | Z-Facility disabled 7713 | -6/Deep Caves | Attacked by Z-Imprinter 7743 | -6/Deep Caves | Destroyed Z-Imprinter 7777 | -6/Deep Caves | Found Prototype Protection 7777 | -6/Deep Caves | Identified Zio. Weapon Casing 7895 | -6/Deep Caves | Found Zio. Weapon Casing 7911 | -6/Deep Caves | Found Zio. Weapon Casing 8059 | -6/Deep Caves | Build established: Scavenger-Gunner 8398 | -6/Deep Caves | Spotted AG-93652 8422 | -6/Deep Caves | Core integrity fell below 50% 8470 | -6/Deep Caves | Destroyed AG-93652 8474 | -6/Deep Caves | Triggered Deep Caves wall 8477 | -6/Deep Caves | Exposed GOLEM chamber 8488 | -6/Deep Caves | Found GOLEM Unit 8494 | -6/Deep Caves | Found GOLEM Unit 8523 | -6/Deep Caves | Found GOLEM Unit 8524 | -6/Deep Caves | Lost 12 parts (1p2n6u3w) 8529 | -6/Deep Caves | Found GOLEM Unit 8549 | -6/Deep Caves | Core integrity fell below 20% 8559 | -6/Deep Caves | Spotted AS-41952 8559 | -6/Deep Caves | Spotted AS-26420 8569 | -6/Deep Caves | Destroyed by as-56434 with Assembled Gauss Rifle Last Messages --------------- Leg integration. 08564_ Slug penetrates as-94460. 08564_ as-94460 destroyed. 08564_ Slammed into as-59533. 08564_ Penetrated by Slug. 08566_ Neutron Cannon destroyed. 08566_ Penetrated by Slug. 08567_ GOLEM Unit springs to life. 08567_ Slammed into as-59533. 08568_ AG-46535 GOLEM Unit beginning Asb. Alloy Leg integration. 08568_ GOLEM Unit destroyed. 08568_ System corrupted by crushing effect (+2). 08568_ Slug penetrates as-59533. 08568_ Slug penetrates as-27783. 08569_ as-07215 released from Mobile Assembly Unit. 08569_ as-48883 released from Mobile Assembly Unit. 08569_ GOLEM Unit springs to life. Map ----- +----------------------------------------------------+ | ?????????????????????????????????# | | ????????????????????????????????## | | ???????????????????????????????## | | ??????????????????????????????## | | ??????????????????????????????# | | ??????????????????????????????# | | ???????????????????????????????# | | ????????????????????????????????# | | ????????????????????????????????## | | ?????????????????????????????????# | | ?????????? ????????????????????## | | ?????????? ??????????????????# | | ?????????? ??????????????# # | | ?????????" l ????????????### | | ??????### ???????????## | | ????""" ??????????## | | ????? ????????## | | ????? * s ???????## | | ?????? g aA ??????# | | ?????? ! s / ??????# | | ??????? G ba/! ? ## | | ??????? aa A # "" | | ???????? aa a # """ | | ???????? a a # " | | ??????###Gaaaa ! ! # | | ??????#!"@aa aM ##### | | ??????#Gaaa aa !! #???## | | ??????#aa"aaaaa #????? | | ??????#Ga"aaa ##???? | | ??????#""!!a =! % #???? | | ????????#*! a== = #???? | | ????????" a ! = ##??? | | ????????" !! M #### | | ????????" a= | | ????????""" = | | ????????" = | | ????????"" #### | | ????????" #???? | | ????????"" ##???? | | ????????" # # #???? | | ????????" #### ## ## ##????? | | ????????""" ###??# ## ####?????? | | ?????????" ????#### #????????? | | ?????????######????????#?????????? | | | | | | | | | | | | | +----------------------------------------------------+ Best States ------------- Heat Dissipation 109 Coolant Potential 50 Energy Generation 27 Energy Capacity 700 Matter Stores 300 Matter Capacity 300 Sight Range 22 Robot Scan Range 14 Terrain Scan Density 10 Armor Coverage 600 Resistance: KI 20 Resistance: TH 20 Resistance: EX 20 Resistance: EM 20 Resistance: I 20 Resistance: S 20 Resistance: P 20 Weapon Shielding 100 Evasion (%) 55 Melee Accuracy 5 Particle Charging 25 Kinecelleration 30 Offensive Hacking 10 Item Schematics ----------------- Adv. Signal Interpreter | -6/Zion | Archive Lance | -6/Zion | Archive Mapping Drone Bay | -6/Zion | Archive Phase Shifter | -6/Zion | Archive Disruptor Cannon | -6/Zion | Archive Adv. Focal Shield | -6/Zion | Archive Myomer Leg | -6/Zion | Archive Fusion Compressor | -6/Zion | Archive Remote Force Field | -6/Zion | Archive 0b10 Decoder Chip [Scout] | -6/Zion | Archive Hvy. Treads | -6/Zion | Archive Coil Gun | -6/Zion | Archive Imp. Shock Absorption System | -6/Zion | Archive 0b10 Decoder Chip [Skirmisher] | -6/Zion | Archive Robot Schematics ------------------ M-22 Extractor | -6/Zion | Archive G-47 Trooper | -6/Zion | Archive A-15 Conveyor | -6/Zion | Archive X-77 Beamer | -6/Zion | Archive Fabricated ------------ Imp. Cooling System | x1 | -7/Factory | Preloaded Great Axe | x2 | -7/Factory | Preloaded Alien Tech Used ----------------- None Achievements -------------- None Challenges ------------ None Game ------ Seed MetafieldTrapRifle Manual? 0 Play Time 01:14:44 Cumulative 354.5 hours Start 2024.08.05 @ 03:43:30 End 2024.08.05 @ 05:02:09 Sessions 5 Manual Loads 0 Difficulty Adventurer Special Mode None Game No. 494 Rogue 492 Adventurer 1 Explorer 1 Win Type - Total 3 Types 3/0/0/0/0/0/0/0/0 Lore% 66 Gallery% 79 Achievement% 61 Wizard Run 0 Options --------- Layout 1 ASCII 1 Keyboard 1 Movement Vi Keybinds 0 Fullscreen 1 Font 24/Smallcaps Map View 50x40 Zoom Use 0% Tactical HUD 1 Map Filters NONE Filters LOW_CONTRAST(13,24,33) Steam 1 RUN: d00d05da-d28b-4381-9f6a-179864cdcb04